fUST/lending_fUST_20240914
["ID","MTS","AMOUNT","RATE_DAILY","PERIOD"]
[338124192,1726285861380,-500.0,0.00011506,2]
[338124193,1726285861389,-648.32058625,0.00011506,2]
[338124194,1726285861398,-501.37988323,0.00011506,2]
[338124195,1726285861407,-500.0,0.00011506,2]
[338124196,1726285861417,-500.0,0.00011506,2]
[338124197,1726285861426,-835.92147,0.00011506,2]
[338124198,1726285861436,-500.0,0.00011506,2]
[338124199,1726285861445,-835.92147,0.00011506,2]
[338124200,1726285861455,-202.969333,0.00011506,2]
[338124201,1726285861464,-202.969333,0.00011506,2]
[338124202,1726285861473,-500.0,0.00011506,2]
[338124203,1726285861483,-500.0,0.00011506,2]
[338124204,1726285861492,-498.2176066,0.00011506,2]
[338124205,1726285861502,-835.92147,0.00011506,2]
[338124206,1726285861511,-500.0,0.00011506,2]
[338124207,1726285861520,-835.92147,0.00011506,2]
[338124208,1726285861530,-500.0,0.00011506,2]
[338124209,1726285861539,-500.0,0.00011506,2]
[338124210,1726285861548,-202.969333,0.00011506,2]
[338124211,1726285861557,-202.969333,0.00011506,2]
[338124212,1726285861567,-500.0,0.00011506,2]
[338124213,1726285861576,-502.202318,0.00011506,2]
[338124214,1726285861587,-501.80253632,0.00011506,2]
[338124215,1726285861600,-500.0,0.00011506,2]
[338124216,1726285861609,-500.0,0.00011506,2]
[338124217,1726285861618,-504.86789167,0.00011506,2]
[338124218,1726285861628,-500.0,0.00011506,2]
[338124219,1726285861638,-500.0,0.00011506,2]
[338124220,1726285861648,-500.0,0.00011506,2]
[338124221,1726285861657,-503.83849476,0.00011506,2]
[338124222,1726285861667,-151.0,0.00011506,2]
[338124223,1726285861677,-151.0,0.00011506,2]
[338124224,1726285861687,-500.0,0.00011506,2]
[338124225,1726285861696,-500.0,0.00011506,2]
[338124226,1726285861706,-500.0,0.00011506,2]
[338124227,1726285861716,-151.0,0.00011506,2]
[338124228,1726285861726,-500.0,0.00011506,2]
[338124229,1726285861735,-151.0,0.00011506,2]
[338124230,1726285861745,-500.0,0.00011506,2]
[338124231,1726285861757,-504.34858436,0.00011506,2]
[338124232,1726285861766,-500.0,0.00011506,2]
[338124233,1726285861775,-868.85,0.00011506,2]
[338124234,1726285861784,-500.0,0.00011506,2]
[338124235,1726285861794,-500.0,0.00011506,2]
[338124236,1726285861803,-500.0,0.00011506,2]
[338124237,1726285861812,-503.09637226,0.00011506,2]
[338124238,1726285861821,-500.0,0.00011506,2]
[338124239,1726285861830,-500.0,0.00011506,2]
[338124240,1726285861839,-192.26627765,0.00011506,2]
[338124241,1726285861848,-502.91326946,0.00011506,2]
[338124242,1726285861858,-500.0,0.00011506,2]
[338124243,1726285861867,-500.0,0.00011506,2]
[338124244,1726285861877,-500.0,0.00011506,2]
[338124245,1726285861886,-501.74367474,0.00011506,2]
[338124246,1726285861896,-500.0,0.00011506,2]
[338124247,1726285861905,-500.0,0.00011506,2]
[338124248,1726285861914,-500.0,0.00011506,2]
[338124249,1726285861924,-507.2500662,0.00011506,2]
[338124250,1726285861933,-500.0,0.00011506,2]
[338124251,1726285861942,-500.0,0.00011506,2]
[338124252,1726285861953,-502.24906437,0.00011506,2]
[338124253,1726285861963,-502.00303333,0.00011506,2]
[338124254,1726285861972,-325.341971,0.00011506,2]
[338124255,1726285861982,-325.341971,0.00011506,2]
[338124256,1726285861992,-500.0,0.00011506,2]
[338124257,1726285862002,-503.36965417,0.00011506,2]
[338124258,1726285862011,-506.2456293,0.00011506,2]
[338124259,1726285862020,-500.0,0.00011506,2]
[338124260,1726285862029,-464.53046722,0.00011506,2]
[338124261,1726285862039,-325.341971,0.00011506,2]
[338124262,1726285862049,-325.341971,0.00011506,2]
[338124263,1726285862058,-292.12426842,0.00011506,2]
[338124264,1726285862067,-500.0,0.00011506,2]
[338124265,1726285862076,-500.0,0.00011506,2]
[338124266,1726285862086,-500.0,0.00011506,2]
[338124267,1726285862095,-500.0,0.00011506,2]
[338124268,1726285862105,-500.0,0.00011506,2]
[338124269,1726285862114,-502.10554136,0.00011506,2]
[338124270,1726285862123,-1342.53,0.00011506,2]
[338124271,1726285862132,-5361.21,0.00011506,2]
[338124272,1726285862142,-478.093966,0.00011506,2]
[338124273,1726285862151,-500.0,0.00011506,2]
[338124274,1726285862161,-500.0,0.00011506,2]
[338124275,1726285862171,-500.0,0.00011506,2]
[338124276,1726285862181,-500.0,0.00011506,2]
[338124277,1726285862190,-478.093966,0.00011506,2]
[338124278,1726285862200,-503.08704658,0.00011506,2]
[338124279,1726285862209,-500.0,0.00011506,2]
[338124280,1726285862220,-478.08824813,0.00011506,2]
[338124281,1726285862229,-500.0,0.00011506,2]
[338124282,1726285862239,-508.10040136,0.00011506,2]
[338124283,1726285862248,-501.06931834,0.00011506,2]
[338124284,1726285862266,-500.0,0.00011506,2]
[338124285,1726285862289,-500.0,0.00011506,2]
[338124286,1726285862298,-500.0,0.00011506,2]
[338124287,1726285862308,-500.0,0.00011506,2]
[338124288,1726285862317,-771.92,0.00011506,2]
[338124289,1726285862327,-500.0,0.00011506,2]
[338124290,1726285862337,-501.76587833,0.00011506,2]
[338124291,1726285862347,-956.17,0.00011506,2]
[338124292,1726285862357,-648.64,0.00011506,2]
[338124293,1726285862366,-500.0,0.00011506,2]
[338124294,1726285862376,-501.08834239,0.00011506,2]
[338124295,1726285862385,-500.0,0.00011506,2]
[338124296,1726285862394,-503.09471523,0.00011506,2]
[338124297,1726285862404,-500.0,0.00011506,2]
[338124298,1726285862414,-500.0,0.00011506,2]
[338124299,1726285862424,-505.20143444,0.00011506,2]
[338124300,1726285862433,-506.16971965,0.00011506,2]
[338124301,1726285862443,-500.0,0.00011506,2]
[338124302,1726285862452,-500.0,0.00011506,2]
[338124303,1726285862462,-500.0,0.00011506,2]
[338124304,1726285862472,-500.9232864,0.00011506,2]
[338124305,1726285862482,-337.35367128,0.00011506,2]
[338124306,1726285862491,-331.86010775,0.00011506,2]
[338124307,1726285862500,-500.0,0.00011506,2]
[338124308,1726285862511,-500.0,0.00011506,2]
[338124309,1726285862520,-502.40264313,0.00011506,2]
[338124310,1726285862530,-500.0,0.00011506,2]
[338124311,1726285862540,-538.69,0.00011506,2]
[338124312,1726285862550,-501.10364358,0.00011506,2]
[338124313,1726285862560,-151.0,0.00011506,2]
[338124314,1726285862569,-500.0,0.00011506,2]
[338124315,1726285862579,-500.0,0.00011506,2]
[338124316,1726285862590,-500.0,0.00011506,2]
[338124317,1726285862599,-500.0,0.00011506,2]
[338124318,1726285862608,-500.0,0.00011506,2]
[338124319,1726285862618,-500.0,0.00011506,2]
[338124320,1726285862627,-500.0,0.00011506,2]
[338124321,1726285862637,-511.27823722,0.00011506,2]
[338124322,1726285862648,-500.0,0.00011506,2]
[338124323,1726285862657,-500.49,0.00011506,2]
[338124324,1726285862668,-504.58272278,0.00011506,2]
[338124325,1726285862678,-500.0,0.00011506,2]
[338124326,1726285862688,-500.0,0.00011506,2]
[338124327,1726285862697,-500.0,0.00011506,2]
[338124328,1726285862707,-500.8526119,0.00011506,2]
[338124329,1726285862717,-500.0,0.00011506,2]
[338124330,1726285862726,-151.0,0.00011506,2]
[338124331,1726285862736,-502.04601501,0.00011506,2]
[338124332,1726285862745,-500.0,0.00011506,2]
[338124333,1726285862755,-500.0,0.00011506,2]
[338124334,1726285862765,-500.0,0.00011506,2]
[338124335,1726285862775,-500.0,0.00011506,2]
[338124336,1726285862783,-500.0,0.00011506,2]
[338124337,1726285862793,-500.0,0.00011506,2]
[338124338,1726285862802,-500.0,0.00011506,2]
[338124339,1726285862812,-500.0,0.00011506,2]
[338124340,1726285862821,-500.0,0.00011506,2]
[338124341,1726285862830,-500.0,0.00011506,2]
[338124342,1726285862933,-502.23816751,0.00011506,2]
[338124343,1726285862944,-500.0,0.00011506,2]
[338124344,1726285862953,-500.0,0.00011506,2]
[338124345,1726285862962,-501.02156009,0.00011506,2]
[338124346,1726285862972,-501.70352211,0.00011506,2]
[338124347,1726285862983,-500.0,0.00011506,2]
[338124348,1726285862992,-500.0,0.00011506,2]
[338124349,1726285863002,-500.0,0.00011506,2]
[338124350,1726285863013,-186.05425676,0.00011506,2]
[338124351,1726285863023,-500.0,0.00011506,2]
[338124352,1726285863032,-500.0,0.00011506,2]
[338124353,1726285863042,-500.0,0.00011506,2]
[338124354,1726285863052,-500.0,0.00011506,2]
[338124355,1726285863062,-500.0,0.00011506,2]
[338124356,1726285863072,-500.0,0.00011506,2]
[338124357,1726285863082,-500.0,0.00011506,2]
[338124358,1726285863092,-500.0,0.00011506,2]
[338124359,1726285863102,-500.0,0.00011506,2]
[338124360,1726285863111,-500.0,0.00011506,2]
[338124361,1726285863121,-500.0,0.00011506,2]
[338124362,1726285863132,-500.0,0.00011506,2]
[338124363,1726285863142,-151.0,0.00011506,2]
[338124364,1726285863153,-151.0,0.00011506,2]
[338124365,1726285863163,-502.11909549,0.00011506,2]
[338124366,1726285863172,-500.0,0.00011506,2]
[338124367,1726285863183,-500.0,0.00011506,2]
[338124368,1726285863193,-500.0,0.00011506,2]
[338124369,1726285863203,-502.93683962,0.00011506,2]
[338124370,1726285863214,-500.0,0.00011506,2]
[338124371,1726285863225,-500.0,0.00011506,2]
[338124372,1726285863235,-500.0,0.00011506,2]
[338124373,1726285863246,-15495.66,0.00011506,2]
[338124374,1726285863256,-500.0,0.00011506,2]
[338124375,1726285863267,-500.0,0.00011506,2]
[338124376,1726285863277,-501.27322743,0.00011506,2]
[338124377,1726285863287,-500.0,0.00011506,2]
[338124378,1726285863297,-500.0,0.00011506,2]
[338124379,1726285863308,-500.0,0.00011506,2]
[338124380,1726285863318,-729.42,0.00011506,2]
[338124381,1726285863329,-500.0,0.00011506,2]
[338124382,1726285863341,-500.0,0.00011506,2]
[338124383,1726285863351,-517.132265,0.00011506,2]
[338124384,1726285863361,-500.0,0.00011506,2]
[338124385,1726285863373,-151.0,0.00011506,2]
[338124386,1726285863384,-500.0,0.00011506,2]
[338124387,1726285863395,-500.29667237,0.00011506,2]
[338124388,1726285863410,-500.0,0.00011506,2]
[338124389,1726285863426,-500.0,0.00011506,2]
[338124390,1726285863437,-500.0,0.00011506,2]
[338124391,1726285863448,-502.10690209,0.00011506,2]
[338124392,1726285863458,-500.0,0.00011506,2]
[338124393,1726285863470,-500.0,0.00011506,2]
[338124394,1726285863481,-501.47836458,0.00011506,2]
[338124395,1726285863492,-500.0,0.00011506,2]
[338124396,1726285863502,-500.0,0.00011506,2]
[338124397,1726285863511,-518.55433097,0.00011506,2]
[338124398,1726285863521,-500.0,0.00011506,2]
[338124399,1726285863531,-500.0,0.00011506,2]
[338124400,1726285863541,-500.0,0.00011506,2]
[338124401,1726285863553,-500.0,0.00011506,2]
[338124402,1726285863562,-2999.39,0.00011506,2]
[338124403,1726285863572,-500.0,0.00011506,2]
[338124404,1726285863582,-500.0,0.00011506,2]
[338124405,1726285863600,-500.0,0.00011506,2]
[338124406,1726285863611,-502.12339566,0.00011506,2]
[338124407,1726285863621,-509.98305529,0.00011506,2]
[338124408,1726285863631,-502.14607618,0.00011506,2]
[338124409,1726285863642,-502.23400361,0.00011506,2]
[338124410,1726285863652,-500.0,0.00011506,2]
[338124411,1726285863662,-500.0,0.00011506,2]
[338124412,1726285863672,-500.0,0.00011506,2]
[338124413,1726285863682,-466.572096,0.00011506,2]
[338124414,1726285863692,-500.0,0.00011506,2]
[338124415,1726285863702,-500.0,0.00011506,2]
[338124416,1726285863712,-500.0,0.00011506,2]
[338124417,1726285863723,-500.0,0.00011506,2]
[338124418,1726285863734,-675.64,0.00011506,2]
[338124419,1726285863743,-500.0,0.00011506,2]
[338124420,1726285863753,-466.572096,0.00011506,2]
[338124421,1726285863762,-500.0,0.00011506,2]
[338124422,1726285863772,-238.59392,0.00011506,2]
[338124423,1726285863782,-238.59392,0.00011506,2]
[338124424,1726285863791,-500.0,0.00011506,2]
[338124425,1726285863801,-500.0,0.00011506,2]
[338124426,1726285863811,-500.0,0.00011506,2]
[338124427,1726285863820,-500.0,0.00011506,2]
[338124428,1726285863830,-502.33255873,0.00011506,2]
[338124429,1726285863839,-151.0,0.00011506,2]
[338124430,1726285863849,-500.0,0.00011506,2]
[338124431,1726285863859,-151.0,0.00011506,2]
[338124432,1726285863868,-600.45797364,0.00011506,2]
[338124433,1726285863878,-500.0,0.00011506,2]
[338124434,1726285863888,-238.59392,0.00011506,2]
[338124435,1726285863898,-238.59392,0.00011506,2]
[338124436,1726285863908,-155.324845,0.00011506,2]
[338124437,1726285863917,-500.0,0.00011506,2]
[338124438,1726285863928,-580.8771972,0.00011506,2]
[338124439,1726285863937,-500.0,0.00011506,2]
[338124440,1726285863947,-500.0,0.00011506,2]
[338124441,1726285863958,-500.0,0.00011506,2]
[338124442,1726285863968,-400.36143863,0.00011506,2]
[338124443,1726285864440,-658.48,0.00010959,2]
[338124444,1726285864452,-99.63856137,0.00011506,2]
[338124445,1726285864461,-500.0,0.00011506,2]
[338124446,1726285864472,-155.324845,0.00011506,2]
[338124447,1726285864483,-500.0,0.00011506,2]
[338124448,1726285864493,-623.26,0.00011506,2]
[338124449,1726285864503,-500.0,0.00011506,2]
[338124450,1726285864513,-502.87025329,0.00011506,2]
[338124451,1726285864524,-505.31216729,0.00011506,2]
[338124452,1726285864534,-500.0,0.00011506,2]
[338124453,1726285864545,-500.0,0.00011506,2]
[338124454,1726285864555,-500.0,0.00011506,2]
[338124455,1726285864567,-500.0,0.00011506,2]
[338124456,1726285864576,-500.0,0.00011506,2]
[338124457,1726285864588,-500.0,0.00011506,2]
[338124458,1726285864599,-500.0,0.00011506,2]
[338124459,1726285864610,-500.0,0.00011506,2]
[338124460,1726285864620,-500.0,0.00011506,2]
[338124461,1726285864630,-6026.45,0.00011506,2]
[338124462,1726285864640,-500.0,0.00011506,2]
[338124463,1726285864649,-500.0,0.00011506,2]
[338124464,1726285864659,-500.0,0.00011506,2]
[338124465,1726285864669,-500.0,0.00011506,2]
[338124466,1726285864680,-501.3781389,0.00011506,2]
[338124467,1726285864690,-3458.33,0.00011506,2]
[338124468,1726285864700,-500.0,0.00011506,2]
[338124469,1726285864710,-500.0,0.00011506,2]
[338124470,1726285864721,-500.0,0.00011506,2]
[338124471,1726285864732,-500.0,0.00011506,2]
[338124472,1726285864742,-500.0,0.00011506,2]
[338124473,1726285864752,-500.0,0.00011506,2]
[338124474,1726285864764,-500.0,0.00011506,2]
[338124475,1726285864774,-500.0,0.00011506,2]
[338124476,1726285864784,-501.12616769,0.00011506,2]
[338124477,1726285864794,-509.31,0.00011506,2]
[338124478,1726285864804,-500.0,0.00011506,2]
[338124479,1726285864813,-398.30315413,0.00011506,2]
[338124480,1726285864822,-500.0,0.00011506,2]
[338124481,1726285864832,-500.0,0.00011506,2]
[338124482,1726285864842,-328.380615,0.00011506,2]
[338124483,1726285864852,-152.116389,0.00011506,2]
[338124484,1726285864862,-501.56204454,0.00011506,2]
[338124485,1726285864871,-500.0,0.00011506,2]
[338124486,1726285864881,-500.0,0.00011506,2]
[338124487,1726285864891,-328.380615,0.00011506,2]
[338124488,1726285864902,-500.0,0.00011506,2]
[338124489,1726285864911,-500.0,0.00011506,2]
[338124490,1726285864920,-500.0,0.00011506,2]
[338124491,1726285864931,-501.90834421,0.00011506,2]
[338124492,1726285864940,-500.0,0.00011506,2]
[338124493,1726285864951,-500.0,0.00011506,2]
[338124494,1726285864964,-500.0,0.00011506,2]
[338124495,1726285864988,-502.88938056,0.00011506,2]
[338124496,1726285865005,-500.0,0.00011506,2]
[338124497,1726285865024,-500.0,0.00011506,2]
[338124498,1726285865043,-731.61,0.00011506,2]
[338124499,1726285865065,-500.0,0.00011506,2]
[338124500,1726285865084,-500.0,0.00011506,2]
[338124501,1726285865101,-500.0,0.00011506,2]
[338124502,1726285865117,-500.0,0.00011506,2]
[338124503,1726285865134,-500.0,0.00011506,2]
[338124504,1726285865156,-500.0,0.00011506,2]
[338124505,1726285865175,-500.0,0.00011506,2]
[338124506,1726285865188,-500.0,0.00011506,2]
[338124507,1726285865209,-500.0,0.00011506,2]
[338124508,1726285865227,-501.57396426,0.00011506,2]
[338124509,1726285865245,-520.24,0.00011506,2]
[338124510,1726285865259,-500.0,0.00011506,2]
[338124511,1726285865277,-500.0,0.00011506,2]
[338124512,1726285865291,-511.65602876,0.00011506,2]
[338124513,1726285865307,-500.0,0.00011506,2]
[338124514,1726285865323,-504.97599409,0.00011506,2]
[338124515,1726285865338,-500.0,0.00011506,2]
[338124516,1726285865353,-873.79,0.00011506,2]
[338124517,1726285865369,-500.0,0.00011506,2]
[338124518,1726285865385,-500.0,0.00011506,2]
[338124519,1726285865399,-500.0,0.00011506,2]
[338124520,1726285865413,-500.0,0.00011506,2]
[338124521,1726285865436,-500.0,0.00011506,2]
[338124522,1726285865451,-500.0,0.00011506,2]
[338124523,1726285865465,-500.0,0.00011506,2]
[338124524,1726285865480,-500.0,0.00011506,2]
[338124525,1726285865495,-502.53148546,0.00011506,2]
[338124526,1726285865509,-151.0,0.00011506,2]
[338124527,1726285865525,-503.80522659,0.00011506,2]
[338124528,1726285865539,-419.23915899,0.00011506,2]
[338124529,1726285865553,-501.1,0.00011506,2]
[338124530,1726285865571,-597.72,0.00011506,2]
[338124531,1726285865585,-500.0,0.00011506,2]
[338124532,1726285865604,-500.0,0.00011506,2]
[338124533,1726285865619,-500.0,0.00011506,2]
[338124534,1726285865636,-610.41,0.00011506,2]
[338124535,1726285865651,-2133.18,0.00011506,2]
[338124536,1726285865661,-500.0,0.00011506,2]
[338124537,1726285865676,-500.0,0.00011506,2]
[338124538,1726285865686,-500.0,0.00011506,2]
[338124539,1726285865696,-1161.96,0.00011506,2]
[338124540,1726285865706,-151.0,0.00011506,2]
[338124541,1726285865716,-151.0,0.00011506,2]
[338124542,1726285865725,-280.306914,0.00011506,2]
[338124543,1726285865735,-196.19260326,0.00011506,2]
[338124547,1726286066602,1000.0,0.00038021,30]
[338124548,1726286072788,1000.0,0.00038021,30]
[338124549,1726286078848,1000.0,0.00038021,30]
[338124550,1726286079724,1000.0,0.00038021,30]
[338124551,1726286097108,1000.0,0.00038021,30]
[338124552,1726286099698,1000.0,0.00038021,30]
[338124553,1726286124366,1000.0,0.00038021,30]
[338124563,1726286873265,548.2,0.00028,120]
[338124596,1726287032308,-300.0,0.00010957,2]
[338124598,1726287032318,-500.0,0.00010958,2]
[338124600,1726287032327,-506.49731669,0.00010958,2]
[338124602,1726287032336,-507.05842186,0.00010958,2]
[338124604,1726287032345,-500.0,0.00010958,2]
[338124606,1726287032355,-212.40324037,0.00010958,2]
[338124691,1726287038395,-287.59675963,0.00010958,2]
[338124692,1726287038407,-502.15823846,0.00010958,2]
[338124693,1726287038419,-500.0,0.00010958,2]
[338124694,1726287038429,-500.0,0.00010958,2]
[338124695,1726287038440,-500.0,0.00010958,2]
[338124696,1726287038451,-503.41349741,0.00010958,2]
[338124697,1726287038462,-500.0,0.00010958,2]
[338124698,1726287038472,-500.0,0.00010958,2]
[338124699,1726287038483,-505.4347193,0.00010958,2]
[338124700,1726287038494,-192.4242307,0.00010958,2]
[338124701,1726287038505,-500.0,0.00010958,2]
[338124702,1726287038516,-500.0,0.00010958,2]
[338124704,1726287038526,-500.0,0.00010958,2]
[338124706,1726287038537,-500.0,0.00010958,2]
[338124708,1726287038548,-500.0,0.00010958,2]
[338124709,1726287038558,-500.0,0.00010958,2]
[338124710,1726287038570,-502.03466191,0.00010958,2]
[338124711,1726287038581,-500.0,0.00010958,2]
[338124712,1726287038592,-500.0,0.00010958,2]
[338124713,1726287038602,-420.70871451,0.00010958,2]
[338124714,1726287038614,-500.0,0.00010958,2]
[338124715,1726287038624,-500.0,0.00010958,2]
[338124716,1726287038635,-500.0,0.00010958,2]
[338124717,1726287038646,-500.0,0.00010958,2]
[338124718,1726287038655,-500.0,0.00010958,2]
[338124719,1726287038665,-500.0,0.00010958,2]
[338124720,1726287038675,-500.0,0.00010958,2]
[338124721,1726287038684,-500.0,0.00010958,2]
[338124722,1726287038694,-500.0,0.00010958,2]
[338124723,1726287038703,-500.0,0.00010958,2]
[338124724,1726287038712,-500.0,0.00010958,2]
[338124725,1726287038721,-500.0,0.00010958,2]
[338124726,1726287038731,-500.0,0.00010958,2]
[338124727,1726287038740,-500.0,0.00010958,2]
[338124728,1726287038751,-636.81839887,0.00010958,2]
[338124729,1726287038760,-509.31251333,0.00010958,2]
[338124730,1726287038769,-500.0,0.00010958,2]
[338124731,1726287038779,-500.0,0.00010958,2]
[338124732,1726287038788,-500.0,0.00010958,2]
[338124733,1726287038798,-500.0,0.00010958,2]
[338124734,1726287038808,-500.0,0.00010958,2]
[338124735,1726287038818,-500.0,0.00010958,2]
[338124736,1726287038828,-1228.23,0.00010958,2]
[338124737,1726287038838,-500.0,0.00010958,2]
[338124738,1726287038848,-500.0,0.00010958,2]
[338124739,1726287038859,-500.0,0.00010958,2]
[338124740,1726287038869,-500.0,0.00010958,2]
[338124741,1726287038883,-500.0,0.00010958,2]
[338124742,1726287038893,-502.31446778,0.00010958,2]
[338124743,1726287038905,-500.0,0.00010958,2]
[338124744,1726287038915,-502.67478217,0.00010958,2]
[338124745,1726287038925,-500.0,0.00010958,2]
[338124746,1726287038935,-503.32083913,0.00010958,2]
[338124747,1726287038946,-210.49866339,0.00010958,2]
[338124748,1726287038956,-500.0,0.00010958,2]
[338124749,1726287038967,-500.0,0.00010958,2]
[338124750,1726287038976,-500.0,0.00010958,2]
[338124751,1726287038985,-500.0,0.00010958,2]
[338124752,1726287038995,-196.46247298,0.00010958,2]
[338124753,1726287039315,-303.53752702,0.00010958,2]
[338124754,1726287039327,-500.0,0.00010958,2]
[338124755,1726287039337,-500.0,0.00010958,2]
[338124756,1726287039346,-500.0,0.00010958,2]
[338124757,1726287039355,-500.0,0.00010958,2]
[338124758,1726287039366,-500.0,0.00010958,2]
[338124759,1726287039376,-53.55784599,0.00010958,2]
[338124760,1726287039389,-303.0,0.00010958,2]
[338124761,1726287039407,-143.44215401,0.00010958,2]
[338124762,1726287039417,-500.0,0.00010958,2]
[338124763,1726287039428,-502.64603027,0.00010958,2]
[338124764,1726287039439,-167.33346505,0.00010958,2]
[338124765,1726287039449,-500.0,0.00010958,2]
[338124766,1726287039458,-500.0,0.00010958,2]
[338124767,1726287039469,-500.0,0.00010958,2]
[338124768,1726287039478,-500.0,0.00010958,2]
[338124769,1726287039488,-500.0,0.00010958,2]
[338124770,1726287039497,-501.77212835,0.00010958,2]
[338124771,1726287039507,-500.0,0.00010958,2]
[338124772,1726287039516,-500.0,0.00010958,2]
[338124773,1726287039526,-500.0,0.00010958,2]
[338124774,1726287039535,-622.68615264,0.00010958,2]
[338124775,1726287039545,-233.84326214,0.00010958,2]
[338124776,1726287039558,-266.15673786,0.00010958,2]
[338124777,1726287039568,-472.3129629,0.00010958,2]
[338124778,1726287039583,-27.6870371,0.00010958,2]
[338124779,1726287039595,-500.0,0.00010958,2]
[338124780,1726287039605,-500.0,0.00010958,2]
[338124781,1726287039617,-500.0,0.00010958,2]
[338124782,1726287039628,-500.0,0.00010958,2]
[338124783,1726287039641,-500.0,0.00010958,2]
[338124784,1726287039651,-500.0,0.00010958,2]
[338124785,1726287039663,-500.0,0.00010958,2]
[338124786,1726287039677,-500.0,0.00010958,2]
[338124787,1726287039689,-500.0,0.00010958,2]
[338124788,1726287039701,-500.0,0.00010958,2]
[338124789,1726287039712,-500.0,0.00010958,2]
[338124790,1726287039722,-500.0,0.00010958,2]
[338124791,1726287039733,-500.0,0.00010958,2]
[338124792,1726287039745,-500.0,0.00010958,2]
[338124793,1726287039758,-500.0,0.00010958,2]
[338124794,1726287039769,-500.0,0.00010958,2]
[338124795,1726287039779,-500.0,0.00010958,2]
[338124796,1726287039789,-500.0,0.00010958,2]
[338124797,1726287039800,-500.0,0.00010958,2]
[338124798,1726287039809,-500.0,0.00010958,2]
[338124799,1726287039819,-500.0,0.00010958,2]
[338124800,1726287039828,-500.0,0.00010958,2]
[338124801,1726287039837,-500.0,0.00010958,2]
[338124802,1726287039847,-504.75154085,0.00010958,2]
[338124803,1726287039858,-500.0,0.00010958,2]
[338124804,1726287039868,-500.0,0.00010958,2]
[338124805,1726287039878,-501.82006168,0.00010958,2]
[338124806,1726287039888,-500.0,0.00010958,2]
[338124807,1726287039898,-500.0,0.00010958,2]
[338124808,1726287039909,-500.0,0.00010958,2]
[338124809,1726287039919,-500.0,0.00010958,2]
[338124811,1726287039929,-505.19282319,0.00010958,2]
[338124812,1726287039940,-500.0,0.00010958,2]
[338124813,1726287039949,-500.0,0.00010958,2]
[338124814,1726287039960,-510.72709955,0.00010958,2]
[338124815,1726287039970,-500.0,0.00010958,2]
[338124816,1726287039980,-500.0,0.00010958,2]
[338124817,1726287039990,-500.0,0.00010958,2]
[338124818,1726287040000,-500.0,0.00010958,2]
[338124819,1726287040012,-500.0,0.00010958,2]
[338124820,1726287040022,-500.0,0.00010958,2]
[338124821,1726287040032,-500.0,0.00010958,2]
[338124822,1726287040044,-500.0,0.00010958,2]
[338124823,1726287040054,-500.0,0.00010958,2]
[338124824,1726287040066,-500.68265068,0.00010958,2]
[338124825,1726287040077,-500.0,0.00010958,2]
[338124826,1726287040088,-501.05653186,0.00010958,2]
[338124827,1726287040100,-500.0,0.00010958,2]
[338124828,1726287040110,-500.0,0.00010958,2]